fUSD/lending_fUSD_20250930
["ID","MTS","AMOUNT","RATE_DAILY","PERIOD"]
[388540671,1759236729697,-1429.01,0.0002,2]
[388540672,1759236729707,-500.0,0.0002,2]
[388540673,1759236729717,-1639.11,0.0002,2]
[388540674,1759236729729,-500.0,0.0002,2]
[388540675,1759236729739,-4353.78,0.0002,2]
[388540676,1759236730034,-654.98,0.0002,2]
[388540677,1759236730044,-3746.29,0.0002,2]
[388540678,1759236730054,-500.0,0.0002,2]
[388540679,1759236730064,-500.0,0.0002,2]
[388540680,1759236730073,-1228.07,0.0002,2]
[388540681,1759236730083,-500.0,0.0002,2]
[388540682,1759236730093,-500.0,0.0002,2]
[388540683,1759236730102,-500.0,0.0002,2]
[388540684,1759236730113,-6793.84,0.0002,2]
[388540685,1759236730122,-771.21,0.0002,2]
[388540686,1759236730132,-2023.02,0.0002,2]
[388540687,1759236730141,-3994.63,0.0002,2]
[388540688,1759236730151,-1848.51,0.0002,2]
[388540689,1759236730160,-508.54,0.0002,2]
[388540690,1759236730169,-7114.54,0.0002,2]
[388540691,1759236730179,-813.64,0.0002,2]
[388540692,1759236730188,-500.0,0.0002,2]
[388540693,1759236730197,-7172.54,0.0002,2]
[388540694,1759236730207,-426.06571073,0.0002,2]
[388540695,1759236730216,-3815.16,0.0002,2]
[388540696,1759236730226,-1303.96,0.0002,2]
[388540697,1759236730235,-527.56,0.0002,2]
[388540698,1759236730244,-527.07,0.0002,2]
[388540699,1759236730254,-1399.73,0.0002,2]
[388540700,1759236730263,-500.0,0.0002,2]
[388540701,1759236730272,-500.0,0.0002,2]
[388540702,1759236730282,-2619.03,0.0002,2]
[388540703,1759236730291,-2913.4,0.0002,2]
[388540704,1759236730300,-21774.44,0.0002,2]
[388540705,1759236730309,-500.0,0.0002,2]
[388540706,1759236730319,-2968.61,0.0002,2]
[388540707,1759236730329,-500.0,0.0002,2]
[388540708,1759236730339,-1918.13,0.0002,2]
[388540709,1759236730348,-1472.51,0.0002,2]
[388540710,1759236730358,-500.0,0.0002,2]
[388540711,1759236730368,-4650.74,0.0002,2]
[388540712,1759236730378,-500.0,0.0002,2]
[388540713,1759236730391,-500.0,0.0002,2]
[388540714,1759236730400,-2147.86,0.0002,2]
[388540715,1759236730410,-500.0,0.0002,2]
[388540716,1759236730420,-1174.34,0.0002,2]
[388540717,1759236730430,-19565.78,0.0002,2]
[388540718,1759236730439,-1497.08,0.0002,2]
[388540719,1759236730448,-500.0,0.0002,2]
[388540720,1759236730458,-3388.02,0.0002,2]
[388540721,1759236730468,-4713.09,0.0002,2]
[388540722,1759236730478,-2799.17,0.0002,2]
[388540723,1759236730487,-2233.98,0.0002,2]
[388540724,1759236730497,-1348.57,0.0002,2]
[388540725,1759236730508,-1023.1,0.0002,2]
[388540726,1759236730517,-1643.92,0.0002,2]
[388540727,1759236730527,-4000.0,0.0002,4]
[388540728,1759236730536,-1425.3,0.0002,2]
[388540729,1759236730547,-4011.93,0.0002,2]
[388540730,1759236730558,-1836.14,0.0002,2]
[388540731,1759236730568,-500.0,0.0002,2]
[388540732,1759236730578,-500.0,0.0002,2]
[388540733,1759236730588,-1122.49,0.0002,2]
[388540734,1759236730599,-3165.44,0.0002,2]
[388540735,1759236730609,-500.0,0.0002,2]
[388540736,1759236730618,-500.0,0.0002,2]
[388540737,1759236730628,-636.3,0.0002,2]
[388540738,1759236730637,-1351.71,0.0002,2]
[388540739,1759236730647,-500.0,0.0002,2]
[388540740,1759236730656,-500.0,0.0002,2]
[388540741,1759236730665,-4883.0,0.0002,2]
[388540742,1759236730675,-4753.48,0.0002,2]
[388540743,1759236730684,-934.85,0.0002,2]
[388540744,1759236730693,-500.0,0.0002,2]
[388540745,1759236730703,-12816.21,0.0002,2]
[388540746,1759236730714,-1515.69,0.0002,2]
[388540747,1759236730726,-4248.48,0.0002,2]
[388540748,1759236730736,-1085.56,0.0002,2]
[388540749,1759236730746,-3443.7,0.0002,2]
[388540750,1759236730756,-500.0,0.0002,2]
[388540751,1759236730765,-10208.2,0.0002,2]
[388540752,1759236730775,-500.0,0.0002,2]
[388540753,1759236730784,-2104.83,0.0002,2]
[388540754,1759236730793,-500.0,0.0002,2]
[388540755,1759236730803,-2104.83,0.0002,2]
[388540756,1759236730812,-500.0,0.0002,2]
[388540757,1759236730822,-560.67,0.0002,2]
[388540758,1759236730835,-18773.04,0.0002,2]
[388540759,1759236730846,-821.31,0.0002,2]
[388540760,1759236730856,-961.69,0.0002,2]
[388540761,1759236730866,-500.0,0.0002,2]
[388540762,1759236730877,-2759.4,0.0002,2]
[388540763,1759236730886,-666.51,0.0002,2]
[388540764,1759236730896,-1029.44,0.0002,2]
[388540765,1759236730907,-6876.3,0.0002,2]
[388540766,1759236730917,-1050.1,0.0002,2]
[388540767,1759236730927,-3187.48,0.0002,2]
[388540768,1759236730936,-500.0,0.0002,2]
[388540769,1759236730946,-500.0,0.0002,2]
[388540770,1759236730955,-1729.31,0.0002,2]
[388540771,1759236730965,-1339.37,0.0002,2]
[388540772,1759236730975,-1344.1,0.0002,2]
[388540773,1759236730985,-797.07,0.0002,2]
[388540774,1759236730994,-6717.68,0.0002,2]
[388540775,1759236731003,-500.0,0.0002,2]
[388540776,1759236731013,-3703.76,0.0002,2]
[388540777,1759236731022,-3484.89,0.0002,2]
[388540778,1759236731032,-1238.43,0.0002,2]
[388540779,1759236731044,-3586.23,0.0002,2]
[388540780,1759236731054,-5800.0,0.0002001,2]
[388540781,1759236731063,-5800.0,0.00020019,2]
[388540782,1759236731072,-199.57271068,0.00020021,2]
[388540783,1759236731082,-150.0,0.00020022,2]
[388540784,1759236731092,-193.3,0.00020022,2]
[388540785,1759236731101,-693.0,0.00020023,2]
[388540786,1759236731111,-236.37513783,0.00020023,2]
[388540787,1759236731120,-309.9140696,0.00020025,2]
[388540788,1759236731130,-383.45300137,0.00020026,2]
[388540789,1759236731139,-5800.0,0.00020027,2]
[388540790,1759236731148,-456.99193314,0.00020028,2]
[388540791,1759236731157,-530.53086491,0.00020029,2]
[388540792,1759236731167,-604.06979668,0.0002003,2]
[388540793,1759236731176,-677.60872847,0.00020032,2]
[388540794,1759236731186,-5800.0,0.00020036,2]
[388540795,1759236731195,-2990.0,0.00020036,2]
[388540796,1759236731204,-500.0,0.00020044,2]
[388540797,1759236731214,-500.0,0.00020044,2]
[388540798,1759236731225,-500.0,0.00020044,2]
[388540799,1759236731234,-500.0,0.00020044,2]
[388540800,1759236731244,-500.0,0.00020044,2]
[388540801,1759236731254,-500.0,0.00020044,2]
[388540802,1759236731263,-500.0,0.00020044,2]
[388540803,1759236731273,-500.0,0.00020044,2]
[388540804,1759236731283,-500.0,0.00020044,2]
[388540805,1759236731292,-500.0,0.00020044,2]
[388540806,1759236731302,-500.0,0.00020044,2]
[388540807,1759236731311,-500.0,0.00020044,2]
[388540808,1759236731321,-500.0,0.00020044,2]
[388540809,1759236731329,-500.0,0.00020044,2]
[388540810,1759236731339,-500.0,0.00020044,2]
[388540811,1759236731348,-500.0,0.00020044,2]
[388540812,1759236731357,-5800.0,0.00020044,2]
[388540813,1759236731366,-244.87174336,0.00020055,2]
[388540814,1759236731376,-196.85276112,0.00020055,2]
[388540815,1759236731385,-285.47030824,0.00020055,2]
[388540816,1759236731394,-281.59967759,0.00020056,2]
[388540817,1759236731404,-389.81,0.00020067,2]
[388540818,1759236731413,-323.54005511,0.00020075,2]
[388540819,1759236731422,-500.0,0.00020078,2]
[388540820,1759236731431,-500.0,0.00020081,2]
[388540821,1759236731440,-2000.0,0.00020081,2]
[388540822,1759236731449,-365.48043262,0.00020094,2]
[388540823,1759236731460,-200.0,0.000201,2]
[388540824,1759236731470,-244.87174336,0.0002011,2]
[388540825,1759236731479,-196.85276112,0.0002011,2]
[388540826,1759236731488,-285.47030824,0.0002011,2]
[388540827,1759236731498,-407.42081014,0.00020113,2]
[388540828,1759236731507,-2351.0,0.00020126,2]
[388540829,1759236731517,-449.36118765,0.00020131,2]
[388540830,1759236731527,-163.24782891,0.00020137,2]
[388540831,1759236731536,-193.3,0.00020147,2]
[388540832,1759236731545,-693.0,0.00020147,2]
[388540833,1759236731555,-463.07,0.00020149,2]
[388540834,1759236731564,-491.30156516,0.0002015,2]
[388540835,1759236731573,-28343.329928,0.00020156,2]
[388540836,1759236731583,-4439.8296416,0.00020156,2]
[388540837,1759236731594,-88776.2702711,0.00020156,2]
[388540838,1759236731604,-533.24194268,0.00020169,2]
[388540839,1759236731613,-2000.0,0.00020172,2]
[388540840,1759236731623,-2000.0,0.00020172,2]
[388540841,1759236731632,-233.3715545,0.00020173,2]
[388540842,1759236731641,-5218.62717953,0.00020173,2]
[388540843,1759236731651,-575.18232019,0.00020188,2]
[388540844,1759236731661,-244.87174336,0.00020192,2]
[388540845,1759236731670,-196.85276112,0.00020192,2]
[388540846,1759236731679,-285.47030824,0.00020192,2]
[388540847,1759236731689,-3169.13723958,0.000202,2]
[388540848,1759236731698,-392.36,0.00020201,2]
[388540849,1759236731707,-32846.72841247,0.00020205,2]
[388540850,1759236731717,-617.12269771,0.00020206,2]
[388540851,1759236731726,-168.0,0.00020219,2]
[388540852,1759236731735,-412.3237314,0.0002022,2]
[388540853,1759236731744,-659.06307522,0.00020225,2]
[388540854,1759236731754,-701.00345273,0.00020244,2]
[388540855,1759236731763,-1649.87,0.00020256,2]
[388540856,1759236731771,-168.0,0.0002026,2]
[388540857,1759236731781,-1504.83913649,0.0002026,2]
[388540858,1759236731790,-742.94383024,0.00020263,2]
[388540859,1759236731800,-1500.0,0.00020268,2]
[388540860,1759236731809,-290.28217104,0.00020268,2]
[388540861,1759236731819,-1500.0,0.00020268,2]
[388540862,1759236731831,-1250.14216786,0.00020268,2]
[388540863,1759236731841,-1500.0,0.00020268,2]
[388540864,1759236731851,-1500.0,0.00020268,2]
[388540865,1759236731862,-528.73200569,0.00020268,2]
[388540866,1759236731873,-709.3592731,0.00020268,2]
[388540867,1759236731882,-195.451848,0.00020268,2]
[388540868,1759236731892,-1255.28457453,0.00020268,2]
[388540869,1759236731902,-266.46551295,0.00020268,2]
[388540870,1759236731912,-329.41569127,0.00020268,2]
[388540871,1759236731921,-1500.0,0.00020268,2]
[388540872,1759236731930,-1500.0,0.00020268,2]
[388540873,1759236731940,-1355.72361662,0.00020268,2]
[388540874,1759236731949,-1500.0,0.00020268,2]
[388540875,1759236731959,-1500.0,0.00020268,2]
[388540876,1759236731969,-1500.0,0.00020268,2]
[388540877,1759236731978,-1500.0,0.00020268,2]
[388540878,1759236731988,-1500.0,0.00020268,2]
[388540879,1759236731997,-400.0,0.0002027,2]
[388540880,1759236732006,-700.0,0.0002027,2]
[388540881,1759236732017,-629.84038604,0.00020273,2]
[388540882,1759236732027,-529.55,0.00020273,2]
[388540883,1759236732036,-1002.0,0.00020273,2]
[388540884,1759236732045,-802.64,0.00020273,2]
[388540885,1759236732055,-547.3,0.00020273,2]
[388540886,1759236732064,-500.0,0.00020273,2]
[388540887,1759236732074,-500.0,0.00020273,2]
[388540888,1759236732085,-915.94,0.00020273,2]
[388540889,1759236732094,-500.0,0.00020273,2]
[388540890,1759236732105,-500.0,0.00020273,2]
[388540891,1759236732115,-500.0,0.00020273,2]
[388540892,1759236732124,-661.48,0.00020273,2]
[388540893,1759236732133,-633.92,0.00020273,2]
[388540894,1759236732142,-500.0,0.00020273,2]
[388540895,1759236732151,-500.0,0.00020273,2]
[388540896,1759236732161,-916.09,0.00020273,2]
[388540897,1759236732170,-1022.35,0.00020273,2]
[388540898,1759236732180,-1020.5,0.00020273,2]
[388540899,1759236732190,-500.0,0.00020273,2]
[388540900,1759236732200,-500.0,0.00020273,2]
[388540901,1759236732209,-607.08,0.00020273,2]
[388540902,1759236732217,-500.0,0.00020273,2]
[388540903,1759236732227,-500.0,0.00020273,2]
[388540904,1759236732236,-500.0,0.00020273,2]
[388540905,1759236732245,-500.0,0.00020273,2]
[388540906,1759236732254,-500.0,0.00020273,2]
[388540907,1759236732264,-625.12,0.00020273,2]
[388540908,1759236732274,-500.0,0.00020273,2]
[388540909,1759236732284,-1964.83,0.00020273,2]
[388540910,1759236732293,-1015.48,0.00020273,2]
[388540911,1759236732303,-500.0,0.00020273,2]
[388540912,1759236732312,-500.0,0.00020273,2]
[388540913,1759236732321,-500.0,0.00020273,2]
[388540914,1759236732330,-562.0,0.00020273,2]
[388540915,1759236732340,-500.0,0.00020273,2]
[388540916,1759236732349,-2282.05,0.00020273,2]
[388540917,1759236732358,-852.25,0.00020273,2]
[388540918,1759236732368,-2416.93,0.00020273,2]
[388540919,1759236732377,-646.78,0.00020273,2]
[388540920,1759236732386,-500.0,0.00020273,2]
[388540921,1759236732395,-500.0,0.00020273,2]
[388540922,1759236732405,-1431.48,0.00020273,2]
[388540923,1759236732414,-509.83,0.00020273,2]
[388540924,1759236732423,-768.16,0.00020273,2]
[388540925,1759236732432,-500.0,0.00020273,2]
[388540926,1759236732442,-500.0,0.00020273,2]
[388540927,1759236732451,-775.97,0.00020273,2]
[388540928,1759236732460,-500.0,0.00020273,2]
[388540929,1759236732471,-806.16,0.00020273,2]
[388540930,1759236732481,-1121.26,0.00020273,2]
[388540931,1759236732490,-789.94,0.00020273,2]
[388540932,1759236732502,-789.94,0.00020273,2]
[388540933,1759236732511,-757.03,0.00020273,2]
[388540934,1759236732521,-1244.26,0.00020273,2]
[388540935,1759236732531,-616.9,0.00020273,2]
[388540936,1759236732540,-500.0,0.00020273,2]
[388540937,1759236732550,-500.0,0.00020273,2]
[388540938,1759236732560,-500.0,0.00020273,2]
[388540939,1759236732569,-528.24,0.00020273,2]
[388540940,1759236732578,-500.0,0.00020273,2]
[388540941,1759236732587,-2647.91,0.00020273,2]
[388540942,1759236732597,-500.0,0.00020273,2]
[388540943,1759236732607,-500.0,0.00020273,2]
[388540944,1759236732616,-568.85,0.00020273,2]
[388540945,1759236732626,-500.0,0.00020273,2]
[388540946,1759236732646,-500.0,0.00020273,2]
[388540947,1759236732659,-956.14,0.00020273,2]
[388540948,1759236732670,-500.0,0.00020273,2]
[388540949,1759236732680,-500.0,0.00020273,2]
[388540950,1759236732689,-577.88,0.00020273,2]
[388540951,1759236732701,-2697.95,0.00020273,2]
[388540952,1759236732710,-1823.42,0.00020273,2]
[388540953,1759236732721,-500.0,0.00020273,2]
[388540954,1759236732731,-500.0,0.00020273,2]
[388540955,1759236732740,-803.3,0.00020273,2]
[388540956,1759236732750,-193.0,0.00020273,2]
[388540957,1759236732759,-779.29,0.00020273,2]
[388540958,1759236732768,-724.75,0.00020273,2]
[388540959,1759236732777,-780.81,0.00020273,2]
[388540960,1759236732787,-788.0,0.00020273,2]
[388540961,1759236732796,-500.0,0.00020273,2]
[388540962,1759236732805,-500.0,0.00020273,2]
[388540963,1759236732815,-1140.67,0.00020273,2]
[388540964,1759236732828,-2507.06,0.00020273,2]
[388540965,1759236732838,-500.0,0.00020273,2]
[388540966,1759236732847,-961.56,0.00020273,2]
[388540967,1759236732856,-500.0,0.00020273,2]
[388540968,1759236732868,-500.0,0.00020273,2]
[388540969,1759236732877,-500.0,0.00020273,2]
[388540970,1759236732886,-500.0,0.00020273,2]
[388540971,1759236732896,-500.0,0.00020273,2]
[388540972,1759236732911,-2101.19,0.00020273,2]
[388540973,1759236732921,-500.0,0.00020273,2]
[388540974,1759236732930,-1215.25,0.00020273,2]
[388540975,1759236732939,-1164.62,0.00020273,2]
[388540976,1759236732949,-2399.12,0.00020273,2]
[388540977,1759236732959,-1334.02,0.00020273,2]
[388540978,1759236732968,-1278.43,0.00020273,2]
[388540979,1759236732977,-840.44,0.00020273,2]
[388540980,1759236732986,-500.0,0.00020273,2]
[388540981,1759236732995,-500.0,0.00020273,2]
[388540982,1759236733004,-500.0,0.00020273,2]
[388540983,1759236733013,-683.71,0.00020273,2]
[388540984,1759236733022,-504.4,0.00020273,2]
[388540985,1759236733031,-500.0,0.00020273,2]
[388540986,1759236733040,-500.0,0.00020273,2]
[388540987,1759236733049,-500.0,0.00020273,2]
[388540988,1759236733058,-879.58,0.00020273,2]
[388540989,1759236733067,-769.63,0.00020273,2]
[388540990,1759236733078,-1955.63,0.00020273,2]
[388540991,1759236733087,-1874.15,0.00020273,2]
[388540992,1759236733096,-1273.89,0.00020273,2]
[388540993,1759236733105,-500.0,0.00020273,2]
[388540994,1759236733114,-3314.41,0.00020273,2]
[388540995,1759236733123,-500.0,0.00020273,2]
[388540996,1759236733132,-650.69,0.00020273,2]
[388540997,1759236733142,-500.0,0.00020273,2]
[388540998,1759236733152,-500.0,0.00020273,2]
[388540999,1759236733161,-500.0,0.00020273,2]
[388541000,1759236733170,-500.0,0.00020273,2]
[388541001,1759236733179,-500.0,0.00020273,2]
[388541002,1759236733189,-397.53435876,0.00020273,2]
[388541003,1759236733198,-500.0,0.00020273,2]
[388541004,1759236733209,-500.0,0.00020273,2]
[388541005,1759236733219,-686.0,0.00020273,2]
[388541006,1759236733228,-500.0,0.00020273,2]
[388541007,1759236733237,-500.0,0.00020273,2]
[388541008,1759236733246,-500.0,0.00020273,2]
[388541009,1759236733256,-500.0,0.00020273,2]
[388541010,1759236733265,-2599.85,0.00020273,2]
[388541011,1759236733277,-500.0,0.00020273,2]
[388541012,1759236733288,-500.0,0.00020273,2]
[388541013,1759236733298,-637.08475017,0.00020273,2]
[388541014,1759236733308,-1308.84,0.00020273,2]
[388541015,1759236733318,-500.0,0.00020273,2]
[388541016,1759236733328,-500.0,0.00020273,2]
[388541017,1759236733337,-500.0,0.00020273,2]
[388541018,1759236733346,-500.0,0.00020273,2]
[388541019,1759236733355,-1204.83,0.00020273,2]
[388541020,1759236733365,-500.0,0.00020273,2]
[388541021,1759236733374,-1414.35,0.00020273,2]
[388541022,1759236733383,-1296.49,0.00020273,2]
[388541023,1759236733392,-721.9,0.00020273,2]
[388541024,1759236733402,-500.0,0.00020273,2]
[388541025,1759236733411,-500.0,0.00020273,2]
[388541026,1759236733420,-500.0,0.00020273,2]
[388541027,1759236733431,-500.0,0.00020273,2]
[388541028,1759236733441,-785.77,0.00020273,2]
[388541029,1759236733450,-500.0,0.00020273,2]
[388541030,1759236733459,-589.91,0.00020273,2]
[388541031,1759236733469,-500.0,0.00020273,2]
[388541032,1759236733479,-1563.28,0.00020273,2]
[388541033,1759236733489,-500.0,0.00020273,2]
[388541034,1759236733498,-1019.02,0.00020273,2]
[388541035,1759236733508,-300.0,0.00020273,2]
[388541036,1759236733517,-500.0,0.00020273,2]
[388541037,1759236733527,-531.72,0.00020273,2]
[388541038,1759236733536,-500.0,0.00020273,2]
[388541039,1759236733547,-500.0,0.00020273,2]
[388541040,1759236733556,-1956.66,0.00020273,2]
[388541041,1759236733565,-1127.24,0.00020273,2]
[388541042,1759236733574,-758.97,0.00020273,2]
[388541043,1759236733583,-516.33811483,0.00020273,2]
[388541044,1759236733592,-500.0,0.00020273,2]
[388541045,1759236733601,-323.59341367,0.00020273,2]
[388541046,1759236733610,-500.0,0.00020273,2]
[388541047,1759236733620,-500.0,0.00020273,2]
[388541048,1759236733629,-557.06,0.00020273,2]
[388541049,1759236733637,-500.0,0.00020273,2]
[388541050,1759236733647,-1325.61,0.00020273,2]
[388541051,1759236733656,-500.0,0.00020273,2]
[388541052,1759236733666,-1775.13,0.00020273,2]
[388541053,1759236733675,-500.0,0.00020273,2]
[388541054,1759236733684,-500.0,0.00020273,2]
[388541055,1759236733698,-500.0,0.00020273,2]
[388541056,1759236733707,-540.37,0.00020273,2]
[388541057,1759236733716,-500.0,0.00020273,2]
[388541058,1759236733725,-500.0,0.00020273,2]
[388541059,1759236733735,-155.96193021,0.00020273,2]
[388541060,1759236733744,-859.64,0.00020273,2]
[388541061,1759236733754,-1174.76,0.00020273,2]
[388541062,1759236733763,-1125.81,0.00020273,2]
[388541063,1759236733772,-512.08,0.00020273,2]
[388541064,1759236733782,-500.0,0.00020273,2]
[388541065,1759236733791,-500.0,0.00020273,2]
[388541066,1759236733800,-1660.39,0.00020273,2]
[388541067,1759236733810,-468.2547126,0.00020273,2]
[388541068,1759236733819,-500.0,0.00020273,2]
[388541069,1759236733831,-500.0,0.00020273,2]
[388541070,1759236733840,-583.2,0.00020273,2]
[388541071,1759236733851,-500.0,0.00020273,2]
[388541072,1759236733861,-2361.75,0.00020273,2]
[388541073,1759236733871,-1580.78,0.00020273,2]
[388541074,1759236733881,-500.0,0.00020273,2]
[388541075,1759236733891,-451.50575001,0.00020273,2]
[388541076,1759236733902,-3278.0,0.00020273,2]
[388541077,1759236733911,-500.0,0.00020273,2]
[388541078,1759236733921,-2646.42,0.00020273,2]
[388541079,1759236733931,-766.13,0.00020273,2]
[388541080,1759236733941,-585.79,0.00020273,2]
[388541081,1759236733951,-610.64,0.00020273,2]
[388541082,1759236733960,-819.73,0.00020273,2]
[388541083,1759236733970,-500.0,0.00020273,2]
[388541084,1759236733979,-500.0,0.00020273,2]
[388541085,1759236733989,-500.0,0.00020273,2]
[388541086,1759236733998,-1209.61,0.00020273,2]
[388541087,1759236734008,-1581.45,0.00020273,2]
[388541088,1759236734017,-716.83,0.00020273,2]
[388541089,1759236734027,-505.79,0.00020273,2]
[388541090,1759236734037,-749.24,0.00020273,2]
[388541091,1759236734046,-500.0,0.00020273,2]
[388541092,1759236734055,-784.29,0.00020273,2]
[388541093,1759236734065,-500.0,0.00020273,2]
[388541094,1759236734076,-511.55,0.00020273,2]
[388541095,1759236734086,-945.55,0.00020273,2]
[388541096,1759236734097,-500.0,0.00020273,2]
[388541097,1759236734106,-1193.9,0.00020273,2]
[388541098,1759236734116,-500.0,0.00020273,2]
[388541100,1759236734357,-500.0,0.00020273,2]
[388541101,1759236734368,-1243.67,0.00020273,2]
[388541102,1759236734377,-500.0,0.00020273,2]
[388541103,1759236734387,-500.0,0.00020273,2]
[388541104,1759236734397,-1156.41,0.00020273,2]
[388541105,1759236734406,-500.0,0.00020273,2]
[388541106,1759236734416,-500.0,0.00020273,2]
[388541107,1759236734425,-500.0,0.00020273,2]
[388541108,1759236734434,-595.67,0.00020273,2]
[388541109,1759236734443,-500.0,0.00020273,2]
[388541110,1759236734454,-500.0,0.00020273,2]
[388541111,1759236734464,-500.0,0.00020273,2]
[388541112,1759236734477,-2989.39,0.00020273,2]
[388541113,1759236734487,-500.0,0.00020273,2]
[388541114,1759236734496,-588.07,0.00020273,2]
[388541115,1759236734508,-500.0,0.00020273,2]
[388541116,1759236734518,-500.0,0.00020273,2]
[388541117,1759236734528,-652.5,0.00020273,2]
[388541118,1759236734538,-500.0,0.00020273,2]
[388541119,1759236734547,-500.0,0.00020273,2]
[388541120,1759236734557,-1030.88,0.00020273,2]
[388541121,1759236734568,-500.0,0.00020273,2]
[388541122,1759236734578,-641.82,0.00020273,2]
[388541123,1759236734589,-500.0,0.00020273,2]
[388541124,1759236734598,-500.0,0.00020273,2]
[388541125,1759236734607,-1386.24,0.00020273,2]
[388541126,1759236734618,-839.19,0.00020273,2]
[388541127,1759236734627,-500.0,0.00020273,2]
[388541128,1759236734637,-500.0,0.00020273,2]
[388541129,1759236734647,-1351.91,0.00020273,2]
[388541130,1759236734657,-946.99,0.00020273,2]
[388541131,1759236734667,-795.93,0.00020273,2]
[388541132,1759236734683,-500.0,0.00020273,2]
[388541133,1759236734693,-870.82,0.00020273,2]
[388541134,1759236734703,-500.0,0.00020273,2]
[388541135,1759236734714,-500.0,0.00020273,2]
[388541136,1759236734723,-538.01,0.00020273,2]
[388541137,1759236734733,-852.65,0.00020273,2]
[388541138,1759236734743,-500.0,0.00020273,2]
[388541139,1759236734754,-517.57,0.00020273,2]
[388541140,1759236734765,-1588.62,0.00020273,2]
[388541141,1759236734774,-520.67216985,0.00020273,2]
[388541142,1759236734784,-670.32,0.00020273,2]
[388541143,1759236734794,-500.0,0.00020273,2]
[388541144,1759236734804,-500.0,0.00020273,2]
[388541145,1759236734814,-500.0,0.00020273,2]
[388541146,1759236734823,-500.0,0.00020273,2]
[388541147,1759236734836,-1409.18,0.00020273,2]
[388541148,1759236734846,-582.86787265,0.00020273,2]
[388541149,1759236734856,-1632.14,0.00020273,2]
[388541150,1759236734867,-209.76999716,0.00020273,2]
[388541151,1759236734877,-500.0,0.00020273,2]
[388541152,1759236734886,-3131.99,0.00020273,2]
[388541153,1759236734896,-890.61,0.00020273,2]
[388541154,1759236734909,-1628.15,0.00020273,2]
[388541155,1759236734919,-650.41,0.00020273,2]
[388541156,1759236734931,-2154.22,0.00020273,2]
[388541157,1759236734941,-500.0,0.00020273,2]
[388541158,1759236734951,-500.0,0.00020273,2]
[388541159,1759236734961,-500.0,0.00020273,2]
[388541160,1759236734971,-500.0,0.00020273,2]
[388541161,1759236734980,-500.0,0.00020273,2]
[388541162,1759236734990,-912.82,0.00020273,2]
[388541163,1759236735000,-1825.23,0.00020273,2]
[388541164,1759236735010,-1825.23,0.00020273,2]
[388541165,1759236735021,-512.57,0.00020273,2]
[388541166,1759236735031,-885.4,0.00020273,2]
[388541167,1759236735041,-500.0,0.00020273,2]
[388541168,1759236735050,-1622.23,0.00020273,2]
[388541169,1759236735061,-500.0,0.00020273,2]
[388541170,1759236735071,-500.0,0.00020273,2]
[388541171,1759236735083,-500.0,0.00020273,2]